fUST/lending_fUST_20250520
["ID","MTS","AMOUNT","RATE_DAILY","PERIOD"]
[361684085,1747689043086,-653.25,0.0001863,2]
[361684086,1747689043095,-430.0,0.0001863,2]
[361684087,1747689043104,-430.0,0.0001863,2]
[361684088,1747689043114,-728.54,0.0001863,2]
[361684089,1747689043123,-430.0,0.0001863,2]
[361684090,1747689043132,-668.42,0.0001863,2]
[361684091,1747689043141,-430.0,0.0001863,2]
[361684092,1747689043151,-580.75,0.0001863,2]
[361684093,1747689043160,-430.0,0.0001863,2]
[361684094,1747689043169,-430.0,0.0001863,2]
[361684095,1747689043178,-430.0,0.0001863,2]
[361684096,1747689043188,-430.0,0.0001863,2]
[361684097,1747689043197,-522.47,0.0001863,2]
[361684098,1747689043207,-430.0,0.0001863,2]
[361684099,1747689043216,-430.0,0.0001863,2]
[361684100,1747689043226,-1772.37,0.0001863,2]
[361684101,1747689043235,-430.0,0.0001863,2]
[361684102,1747689043244,-430.0,0.0001863,2]
[361684103,1747689043254,-430.0,0.0001863,2]
[361684104,1747689043264,-430.0,0.0001863,2]
[361684105,1747689043273,-475.49,0.0001863,2]
[361684106,1747689043282,-917.53,0.0001863,2]
[361684107,1747689043291,-430.0,0.0001863,2]
[361684108,1747689043300,-430.0,0.0001863,2]
[361684109,1747689043309,-1057.67194981,0.00018728,2]
[361684110,1747689043318,-3568.6,0.000188,2]
[361684111,1747689043328,-3568.6,0.000188,2]
[361684112,1747689043337,-151.0,0.000189,2]
[361684113,1747689043347,-151.0,0.000189,2]
[361684114,1747689043356,-2099.90986805,0.000189,2]
[361684115,1747689043365,-151.0,0.00018904,2]
[361684116,1747689043374,-151.0,0.00018904,2]
[361684117,1747689043383,-151.0,0.00018904,2]
[361684118,1747689043392,-466.732241,0.00018904,2]
[361684119,1747689043401,-466.732241,0.00018904,2]
[361684120,1747689043411,-466.732241,0.00018904,2]
[361684121,1747689043421,-466.732241,0.00018904,2]
[361684122,1747689043432,-466.732241,0.00018904,2]
[361684123,1747689043442,-466.732241,0.00018904,2]
[361684124,1747689043451,-151.0,0.00018904,2]
[361684125,1747689043462,-151.0,0.00018904,2]
[361684126,1747689043473,-151.0,0.00018904,2]
[361684127,1747689043483,-430.0,0.00018904,2]
[361684128,1747689043494,-430.0,0.00018904,2]
[361684129,1747689043506,-430.0,0.00018904,2]
[361684130,1747689043516,-430.0,0.00018904,2]
[361684131,1747689043527,-430.0,0.00018904,2]
[361684132,1747689043537,-430.0,0.00018904,2]
[361684133,1747689043547,-430.0,0.00018904,2]
[361684134,1747689043557,-430.0,0.00018904,2]
[361684135,1747689043566,-430.0,0.00018904,2]
[361684136,1747689043575,-306.56813409,0.00018904,2]
[361684138,1747689043585,-430.0,0.00018904,2]
[361684139,1747689043594,-430.0,0.00018904,2]
[361684140,1747689043604,-430.0,0.00018904,2]
[361684141,1747689043613,-430.0,0.00018904,2]
[361684142,1747689043623,-421.09409967,0.00018904,2]
[361684143,1747689043632,-518.33,0.00018904,2]
[361684145,1747689043641,-430.0,0.00018904,2]
[361684146,1747689043650,-151.0,0.00018904,2]
[361684147,1747689043659,-151.0,0.00018904,2]
[361684149,1747689043669,-151.0,0.00018904,2]
[361684151,1747689043678,-522.20678966,0.00018904,2]
[361684152,1747689043688,-430.0,0.00018904,2]
[361684153,1747689043697,-430.0,0.00018904,2]
[361684154,1747689043706,-430.0,0.00018904,2]
[361684155,1747689043715,-170.0,0.00018904,2]
[361684156,1747689043725,-430.0,0.00018904,2]
[361684157,1747689043734,-430.0,0.00018904,2]
[361684158,1747689043745,-430.0,0.00018904,2]
[361684159,1747689043756,-170.0,0.00018904,2]
[361684160,1747689043766,-430.0,0.00018904,2]
[361684161,1747689043775,-170.0,0.00018904,2]
[361684163,1747689043785,-430.0,0.00018904,2]
[361684164,1747689043794,-430.0,0.00018904,2]
[361684165,1747689043803,-430.0,0.00018904,2]
[361684166,1747689043813,-430.0,0.00018904,2]
[361684167,1747689043822,-430.0,0.00018904,2]
[361684168,1747689043831,-430.0,0.00018904,2]
[361684169,1747689043842,-430.0,0.00018904,2]
[361684170,1747689043852,-430.0,0.00018904,2]
[361684171,1747689043862,-529.73,0.00018904,2]
[361684172,1747689043871,-430.0,0.00018904,2]
[361684173,1747689043883,-270.0,0.00018904,2]
[361684174,1747689043895,-430.0,0.00018904,2]
[361684175,1747689043905,-270.0,0.00018904,2]
[361684176,1747689043914,-566.06,0.00018904,2]
[361684177,1747689043923,-476.06,0.00018904,2]
[361684178,1747689043932,-451.54,0.00018904,2]
[361684179,1747689043941,-1367.37,0.00018904,2]
[361684180,1747689043949,-840.29,0.00018904,2]
[361684181,1747689043958,-1161.87,0.00018904,2]
[361684182,1747689043968,-542.82,0.00018904,2]
[361684183,1747689043977,-2121.46,0.00018904,2]
[361684184,1747689043987,-430.0,0.00018904,2]
[361684193,1747689044135,-430.0,0.00018904,2]
[361684194,1747689044145,-430.0,0.00018904,2]
[361684197,1747689044154,-770.45,0.00018904,2]
[361684199,1747689044163,-430.0,0.00018904,2]
[361684201,1747689044172,-430.0,0.00018904,2]
[361684203,1747689044181,-844.25,0.00018904,2]
[361684204,1747689044190,-430.0,0.00018904,2]
[361684205,1747689044199,-561.3,0.00018904,2]
[361684206,1747689044208,-430.0,0.00018904,2]
[361684207,1747689044217,-430.0,0.00018904,2]
[361684208,1747689044226,-527.57,0.00018904,2]
[361684209,1747689044236,-430.0,0.00018904,2]
[361684210,1747689044246,-430.0,0.00018904,2]
[361684211,1747689044255,-430.0,0.00018904,2]
[361684212,1747689044264,-839.02,0.00018904,2]
[361684213,1747689044275,-240.0,0.00018904,2]
[361684214,1747689044284,-430.0,0.00018904,2]
[361684215,1747689044293,-430.0,0.00018904,2]
[361684216,1747689044302,-430.0,0.00018904,2]
[361684217,1747689044311,-151.0,0.00018904,2]
[361684218,1747689044320,-151.0,0.00018904,2]
[361684219,1747689044329,-430.0,0.00018904,2]
[361684220,1747689044339,-430.0,0.00018904,2]
[361684221,1747689044348,-430.0,0.00018904,2]
[361684222,1747689044357,-430.0,0.00018904,2]
[361684223,1747689044366,-788.94,0.00018904,2]
[361684224,1747689044375,-430.0,0.00018904,2]
[361684225,1747689044385,-430.0,0.00018904,2]
[361684226,1747689044394,-430.0,0.00018904,2]
[361684227,1747689044403,-541.22,0.00018904,2]
[361684228,1747689044412,-430.0,0.00018904,2]
[361684229,1747689044422,-430.0,0.00018904,2]
[361684230,1747689044432,-806.69,0.00018904,2]
[361684231,1747689044441,-430.0,0.00018904,2]
[361684232,1747689044451,-430.0,0.00018904,2]
[361684233,1747689044460,-430.0,0.00018904,2]
[361684234,1747689044470,-430.0,0.00018904,2]
[361684235,1747689044479,-430.0,0.00018904,2]
[361684236,1747689044488,-430.0,0.00018904,2]
[361684237,1747689044497,-430.0,0.00018904,2]
[361684238,1747689044507,-301.52619643,0.00018904,2]
[361684239,1747689044516,-430.0,0.00018904,2]
[361684240,1747689044525,-430.0,0.00018904,2]
[361684241,1747689044535,-490.0,0.00018904,2]
[361684242,1747689044544,-409.40679874,0.00018904,2]
[361684243,1747689044553,-480.22,0.00018904,2]
[361684244,1747689044562,-430.0,0.00018904,2]
[361684245,1747689044571,-430.0,0.00018904,2]
[361684246,1747689044582,-430.0,0.00018904,2]
[361684247,1747689044592,-430.0,0.00018904,2]
[361684248,1747689044602,-825.86,0.00018904,2]
[361684249,1747689044612,-430.0,0.00018904,2]
[361684250,1747689044621,-430.0,0.00018904,2]
[361684251,1747689044631,-430.0,0.00018904,2]
[361684252,1747689044640,-430.0,0.00018904,2]
[361684253,1747689044649,-490.0,0.00018904,2]
[361684254,1747689044660,-430.0,0.00018904,2]
[361684255,1747689044669,-490.0,0.00018904,2]
[361684256,1747689044678,-430.0,0.00018904,2]
[361684257,1747689044688,-430.0,0.00018904,2]
[361684258,1747689044697,-430.0,0.00018904,2]
[361684259,1747689044707,-552.79,0.00018904,2]
[361684260,1747689044716,-430.0,0.00018904,2]
[361684261,1747689044725,-430.0,0.00018904,2]
[361684262,1747689044735,-430.0,0.00018904,2]
[361684263,1747689044744,-430.0,0.00018904,2]
[361684264,1747689044752,-430.0,0.00018904,2]
[361684265,1747689044762,-430.0,0.00018904,2]
[361684266,1747689044771,-430.0,0.00018904,2]
[361684267,1747689044780,-430.0,0.00018904,2]
[361684268,1747689044790,-260.0,0.00018904,2]
[361684269,1747689044799,-225.04558982,0.00018904,2]
[361684270,1747689044809,-743.31,0.00018904,2]
[361684271,1747689044818,-430.0,0.00018904,2]
[361684272,1747689044828,-430.0,0.00018904,2]
[361684273,1747689044837,-430.0,0.00018904,2]
[361684274,1747689044847,-430.0,0.00018904,2]
[361684275,1747689044856,-430.0,0.00018904,2]
[361684276,1747689044866,-430.0,0.00018904,2]
[361684277,1747689044875,-430.0,0.00018904,2]
[361684278,1747689044884,-430.0,0.00018904,2]
[361684279,1747689044894,-430.0,0.00018904,2]
[361684280,1747689044903,-270.0,0.00018904,2]
[361684281,1747689044912,-430.0,0.00018904,2]
[361684282,1747689044922,-440.69,0.00018904,2]
[361684283,1747689044931,-430.0,0.00018904,2]
[361684284,1747689044941,-430.0,0.00018904,2]
[361684285,1747689044951,-430.0,0.00018904,2]
[361684286,1747689044960,-842.83,0.00018904,2]
[361684287,1747689044969,-583.49,0.00018904,2]
[361684288,1747689044979,-430.0,0.00018904,2]
[361684289,1747689044990,-430.0,0.00018904,2]
[361684290,1747689045000,-430.0,0.00018904,2]
[361684291,1747689045009,-430.0,0.00018904,2]
[361684292,1747689045018,-430.0,0.00018904,2]
[361684293,1747689045027,-430.0,0.00018904,2]
[361684294,1747689045036,-430.0,0.00018904,2]
[361684295,1747689045046,-430.0,0.00018904,2]
[361684296,1747689045055,-430.0,0.00018904,2]
[361684297,1747689045064,-500.51,0.00018904,2]
[361684298,1747689045074,-430.0,0.00018904,2]
[361684299,1747689045084,-430.0,0.00018904,2]
[361684300,1747689045094,-430.0,0.00018904,2]
[361684301,1747689045103,-542.37,0.00018904,2]
[361684302,1747689045112,-430.0,0.00018904,2]
[361684303,1747689045122,-490.0,0.00018904,2]
[361684304,1747689045131,-430.0,0.00018904,2]
[361684305,1747689045141,-570.0,0.00018904,2]
[361684306,1747689045149,-436.7,0.00018904,2]
[361684307,1747689045159,-430.0,0.00018904,2]
[361684308,1747689045169,-430.0,0.00018904,2]
[361684309,1747689045179,-430.0,0.00018904,2]
[361684310,1747689045188,-430.0,0.00018904,2]
[361684311,1747689045198,-430.0,0.00018904,2]
[361684312,1747689045207,-340.0,0.00018904,2]
[361684313,1747689045217,-540.86,0.00018904,2]
[361684314,1747689045227,-433.82,0.00018904,2]
[361684315,1747689045237,-430.0,0.00018904,2]
[361684316,1747689045246,-430.0,0.00018904,2]
[361684318,1747689045256,-430.0,0.00018904,2]
[361684320,1747689045266,-340.0,0.00018904,2]
[361684321,1747689045276,-570.0,0.00018904,2]
[361684322,1747689045285,-430.0,0.00018904,2]
[361684323,1747689045294,-430.0,0.00018904,2]
[361684324,1747689045304,-430.0,0.00018904,2]
[361684325,1747689045314,-430.0,0.00018904,2]
[361684326,1747689045324,-430.0,0.00018904,2]
[361684327,1747689045334,-340.0,0.00018904,2]
[361684328,1747689045344,-430.0,0.00018904,2]
[361684329,1747689045354,-576.49,0.00018904,2]
[361684330,1747689045363,-430.0,0.00018904,2]
[361684331,1747689045373,-430.0,0.00018904,2]
[361684332,1747689045383,-430.0,0.00018904,2]
[361684333,1747689045393,-170.0,0.00018904,2]
[361684334,1747689045403,-430.0,0.00018904,2]
[361684335,1747689045412,-430.0,0.00018904,2]
[361684336,1747689045423,-430.0,0.00018904,2]
[361684337,1747689045433,-430.0,0.00018904,2]
[361684338,1747689045443,-315.02899805,0.00018904,2]
[361684339,1747689045453,-340.0,0.00018904,2]
[361684340,1747689045463,-430.0,0.00018904,2]
[361684341,1747689045473,-430.0,0.00018904,2]
[361684342,1747689045484,-430.0,0.00018904,2]
[361684343,1747689045493,-1178.62,0.00018904,2]
[361684344,1747689045505,-430.0,0.00018904,2]
[361684345,1747689045515,-551.87,0.00018904,2]
[361684346,1747689045525,-430.0,0.00018904,2]
[361684347,1747689045535,-430.0,0.00018904,2]
[361684348,1747689045544,-596.48,0.00018904,2]
[361684349,1747689045554,-430.0,0.00018904,2]
[361684350,1747689045563,-430.0,0.00018904,2]
[361684351,1747689045572,-1169.99,0.00018904,2]
[361684352,1747689045581,-430.0,0.00018904,2]
[361684353,1747689045591,-430.0,0.00018904,2]
[361684355,1747689045601,-430.0,0.00018904,2]
[361684356,1747689045610,-586.07,0.00018904,2]
[361684357,1747689045619,-430.0,0.00018904,2]
[361684359,1747689045628,-430.0,0.00018904,2]
[361684361,1747689045638,-430.0,0.00018904,2]
[361684363,1747689045648,-1479.66,0.00018904,2]
[361684365,1747689045657,-570.44,0.00018904,2]
[361684367,1747689045666,-430.0,0.00018904,2]
[361684369,1747689045675,-430.0,0.00018904,2]
[361684371,1747689045686,-430.0,0.00018904,2]
[361684373,1747689045695,-430.0,0.00018904,2]
[361684375,1747689045704,-1429.62,0.00018904,2]
[361684377,1747689045713,-430.0,0.00018904,2]
[361684379,1747689045723,-430.0,0.00018904,2]
[361684381,1747689045732,-430.0,0.00018904,2]
[361684383,1747689045741,-636.82,0.00018904,2]
[361684385,1747689045750,-824.35,0.00018904,2]
[361684387,1747689045759,-445.55,0.00018904,2]
[361684389,1747689045768,-527.87,0.00018904,2]
[361684391,1747689045777,-430.0,0.00018904,2]
[361684393,1747689045786,-671.13,0.00018904,2]
[361684395,1747689045795,-430.0,0.00018904,2]
[361684397,1747689045804,-430.0,0.00018904,2]
[361684399,1747689045813,-430.0,0.00018904,2]
[361684401,1747689045823,-1807.6,0.00018904,2]
[361684402,1747689045832,-430.0,0.00018904,2]
[361684404,1747689045840,-430.0,0.00018904,2]
[361684406,1747689045849,-430.0,0.00018904,2]
[361684408,1747689045859,-430.0,0.00018904,2]
[361684410,1747689045868,-881.33,0.00018904,2]
[361684413,1747689045878,-151.0,0.00018904,2]
[361684415,1747689045887,-151.0,0.00018904,2]
[361684417,1747689045897,-151.0,0.00018904,2]
[361684419,1747689045906,-754.24,0.00018904,2]
[361684421,1747689045916,-430.0,0.00018904,2]
[361684423,1747689045925,-430.0,0.00018904,2]
[361684425,1747689045935,-562.34,0.00018904,2]
[361684427,1747689045944,-3266.02,0.00018904,2]
[361684429,1747689045953,-430.0,0.00018904,2]
[361684431,1747689045963,-457.38,0.00018904,2]
[361684433,1747689045972,-430.0,0.00018904,2]
[361684435,1747689045983,-461.61,0.00018904,2]
[361684437,1747689045992,-430.0,0.00018904,2]
[361684439,1747689046002,-1143.97,0.00018904,2]
[361684441,1747689046011,-430.0,0.00018904,2]
[361684443,1747689046020,-430.0,0.00018904,2]
[361684445,1747689046031,-454.69,0.00018904,2]
[361684447,1747689046041,-430.0,0.00018904,2]
[361684449,1747689046051,-430.0,0.00018904,2]
[361684451,1747689046060,-430.0,0.00018904,2]
[361684453,1747689046070,-538.45,0.00018904,2]
[361684455,1747689046078,-1384.75,0.00018904,2]
[361684457,1747689046087,-430.0,0.00018904,2]
[361684459,1747689046096,-340.0,0.00018904,2]
[361684461,1747689046106,-430.0,0.00018904,2]
[361684463,1747689046115,-430.0,0.00018904,2]
[361684465,1747689046124,-430.0,0.00018904,2]
[361684467,1747689046134,-430.0,0.00018904,2]
[361684469,1747689046144,-1076.38,0.00018904,2]
[361684471,1747689046152,-1118.26,0.00018904,2]
[361684473,1747689046162,-1273.35,0.00018904,2]
[361684475,1747689046171,-878.94,0.00018904,2]
[361684477,1747689046180,-430.0,0.00018904,2]
[361684479,1747689046190,-476.23,0.00018904,2]
[361684481,1747689046201,-170.0,0.00018904,2]
[361684483,1747689046213,-1363.36,0.00018904,2]
[361684486,1747689046225,-430.0,0.00018904,2]
[361684488,1747689046237,-1621.21,0.00018904,2]
[361684490,1747689046247,-430.0,0.00018904,2]
[361684492,1747689046256,-430.0,0.00018904,2]
[361684494,1747689046266,-2072.74,0.00018904,2]
[361684496,1747689046274,-430.0,0.00018904,2]
[361684498,1747689046284,-751.84,0.00018904,2]
[361684500,1747689046293,-6412.4,0.00018904,2]
[361684502,1747689046303,-430.0,0.00018904,2]
[361684503,1747689046312,-430.0,0.00018904,2]
[361684505,1747689046321,-430.0,0.00018904,2]
[361684508,1747689046331,-430.0,0.00018904,2]
[361684509,1747689046340,-430.0,0.00018904,2]
[361684511,1747689046349,-428.77129648,0.00018904,2]
[361684513,1747689046358,-490.0,0.00018904,2]
[361684515,1747689046368,-462.31,0.00018904,2]
[361684518,1747689046377,-952.21,0.00018904,2]
[361684519,1747689046386,-202.30790771,0.00018904,2]
[361684521,1747689046395,-517.18,0.00018904,2]
[361684523,1747689046404,-430.0,0.00018904,2]
[361684526,1747689046414,-430.0,0.00018904,2]
[361684527,1747689046426,-430.0,0.00018904,2]
[361684530,1747689046437,-2452.96,0.00018904,2]
[361684531,1747689046446,-426.89,0.00018904,2]
[361684534,1747689046455,-716.63,0.00018904,2]
[361684536,1747689046466,-380.0,0.00018904,2]
[361684538,1747689046475,-430.0,0.00018904,2]
[361684540,1747689046485,-543.53,0.00018904,2]
[361684542,1747689046495,-1180.63,0.00018904,2]
[361684544,1747689046504,-430.0,0.00018904,2]
[361684546,1747689046513,-430.0,0.00018904,2]
[361684548,1747689046522,-430.0,0.00018904,2]
[361684550,1747689046532,-4782.24,0.00018904,2]
[361684552,1747689046541,-430.0,0.00018904,2]
[361684554,1747689046550,-230.0,0.00018904,2]
[361684556,1747689046560,-430.0,0.00018904,2]
[361684558,1747689046569,-411.2,0.00018904,2]
[361684560,1747689046578,-430.0,0.00018904,2]
[361684562,1747689046587,-614.47,0.00018904,2]
[361684564,1747689046597,-260.0,0.00018904,2]
[361684566,1747689046606,-555.5,0.00018904,2]
[361684568,1747689046615,-483.43,0.00018904,2]
[361684569,1747689046624,-3694.93,0.00018904,2]
[361684571,1747689046634,-430.0,0.00018904,2]
[361684573,1747689046643,-430.0,0.00018904,2]
[361684575,1747689046653,-430.0,0.00018904,2]
[361684577,1747689046662,-430.0,0.00018904,2]
[361684580,1747689046671,-3842.28,0.00018904,2]
[361684581,1747689046683,-430.0,0.00018904,2]
[361684583,1747689046693,-430.0,0.00018904,2]
[361684586,1747689046705,-430.0,0.00018904,2]
[361684588,1747689046715,-430.0,0.00018904,2]
[361684589,1747689046727,-430.0,0.00018904,2]
[361684592,1747689046736,-230.0,0.00018904,2]
[361684594,1747689046746,-430.0,0.00018904,2]
[361684596,1747689046756,-490.0,0.00018904,2]
[361684597,1747689046767,-430.0,0.00018904,2]
[361684600,1747689046776,-430.0,0.00018904,2]
[361684601,1747689046786,-430.0,0.00018904,2]
[361684604,1747689046796,-430.0,0.00018904,2]
[361684605,1747689046805,-430.0,0.00018904,2]
[361684608,1747689046816,-430.0,0.00018904,2]
[361684610,1747689046826,-701.71,0.00018904,2]
[361684612,1747689046835,-430.0,0.00018904,2]
[361684614,1747689046844,-430.0,0.00018904,2]
[361684616,1747689046854,-390.0,0.00018904,2]
[361684617,1747689046864,-430.0,0.00018904,2]
[361684620,1747689046874,-430.0,0.00018904,2]
[361684622,1747689046884,-1127.7,0.00018904,2]
[361684624,1747689046894,-390.0,0.00018904,2]
[361684626,1747689046904,-1351.02,0.00018904,2]
[361684628,1747689046913,-612.23,0.00018904,2]
[361684630,1747689046922,-1780.48,0.00018904,2]
[361684632,1747689046931,-430.0,0.00018904,2]
[361684634,1747689046942,-430.0,0.00018904,2]
[361684651,1747689047088,-1459.59,0.00018904,2]
[361684653,1747689047098,-430.0,0.00018904,2]
[361684656,1747689047108,-1011.21,0.00018904,2]
[361684657,1747689047118,-430.0,0.00018904,2]
[361684659,1747689047127,-430.0,0.00018904,2]
[361684661,1747689047137,-430.0,0.00018904,2]
[361684663,1747689047146,-430.0,0.00018904,2]
[361684666,1747689047156,-430.0,0.00018904,2]
[361684668,1747689047166,-972.23,0.00018904,2]
[361684670,1747689047175,-430.0,0.00018904,2]
[361684672,1747689047185,-430.0,0.00018904,2]
[361684674,1747689047195,-230.0,0.00018904,2]
[361684676,1747689047204,-430.0,0.00018904,2]
[361684678,1747689047213,-891.42,0.00018904,2]
[361684680,1747689047223,-430.0,0.00018904,2]
[361684682,1747689047233,-430.0,0.00018904,2]
[361684684,1747689047242,-1553.7,0.00018904,2]
[361684686,1747689047251,-2530.05,0.00018904,2]
[361684688,1747689047261,-430.0,0.00018904,2]
[361684690,1747689047270,-430.0,0.00018904,2]
[361684692,1747689047281,-994.0,0.00018904,2]
[361684694,1747689047291,-430.0,0.00018904,2]
[361684696,1747689047300,-430.0,0.00018904,2]
[361684698,1747689047310,-928.94,0.00018904,2]
[361684700,1747689047324,-430.0,0.00018904,2]
[361684702,1747689047333,-493.06,0.00018904,2]
[361684704,1747689047343,-526.64,0.00018904,2]
[361684706,1747689047352,-1182.79,0.00018904,2]
[361684708,1747689047361,-525.52622314,0.00018904,2]
[361684710,1747689047371,-672.53,0.00018904,2]
[361684712,1747689047380,-430.0,0.00018904,2]
[361684714,1747689047390,-2189.29,0.00018904,2]
[361684716,1747689047399,-1213.81,0.00018904,2]
[361684718,1747689047409,-430.0,0.00018904,2]
[361684721,1747689047419,-1725.27,0.00018904,2]
[361684723,1747689047433,-430.0,0.00018904,2]
[361684725,1747689047443,-724.91,0.00018904,2]
[361684727,1747689047456,-430.0,0.00018904,2]
[361684729,1747689047466,-430.0,0.00018904,2]
[361684731,1747689047476,-430.0,0.00018904,2]
[361684733,1747689047485,-430.0,0.00018904,2]
[361684735,1747689047495,-653.25,0.00018904,2]
[361684737,1747689047505,-430.0,0.00018904,2]
[361684739,1747689047516,-430.0,0.00018904,2]
[361684741,1747689047525,-728.54,0.00018904,2]
[361684743,1747689047535,-430.0,0.00018904,2]
[361684745,1747689047544,-668.42,0.00018904,2]
[361684747,1747689047554,-430.0,0.00018904,2]
[361684749,1747689047563,-580.75,0.00018904,2]
[361684751,1747689047572,-430.0,0.00018904,2]
[361684753,1747689047582,-430.0,0.00018904,2]
[361684755,1747689047592,-430.0,0.00018904,2]
[361684757,1747689047601,-430.0,0.00018904,2]
[361684759,1747689047610,-522.47,0.00018904,2]
[361684761,1747689047619,-430.0,0.00018904,2]
[361684763,1747689047629,-430.0,0.00018904,2]
[361684765,1747689047639,-1772.37,0.00018904,2]
[361684767,1747689047648,-430.0,0.00018904,2]
[361684769,1747689047658,-310.0,0.00018904,2]
[361684771,1747689047667,-430.0,0.00018904,2]
[361684773,1747689047677,-430.0,0.00018904,2]
[361684775,1747689047687,-475.49,0.00018904,2]
[361684777,1747689047696,-917.53,0.00018904,2]
[361684779,1747689047706,-430.0,0.00018904,2]
[361684781,1747689047715,-160.0,0.00018925,2]
[361684783,1747689047725,-160.0,0.00018925,2]
[361684785,1747689047734,-314.45853212,0.00018925,2]
[361684787,1747689047744,-12638.53552368,0.00018925,2]
[361684790,1747689047753,-422.59250115,0.00018925,2]
[361684792,1747689047762,-998.68447496,0.00018925,2]
[361684793,1747689047771,-160.0,0.00018925,2]
[361684796,1747689047781,-212.35735062,0.00018925,2]
[361684798,1747689047791,-160.0,0.00018925,2]
[361684800,1747689047800,-160.0,0.00018925,2]
[361684802,1747689047811,-160.0,0.00018925,2]
[361684804,1747689047820,-160.0,0.00018925,2]
[361684806,1747689047830,-160.0,0.00018925,2]
[361684808,1747689047839,-500.0,0.00018973,2]
[361684810,1747689047848,-500.0,0.00018973,2]
[361684811,1747689047863,-500.0,0.00018973,2]
[361684813,1747689047873,-500.0,0.00018973,2]
[361684816,1747689047882,-500.0,0.00018973,2]
[361684818,1747689047892,-500.0,0.00018973,2]
[361684819,1747689047901,-500.0,0.00018973,2]
[361684821,1747689047911,-500.0,0.00018973,2]
[361684823,1747689047921,-546.2052964,0.00018973,2]
[361684826,1747689047932,-500.0,0.00018973,2]
[361684828,1747689047943,-500.0,0.00018973,2]
[361684830,1747689047952,-500.0,0.00018973,2]
[361684832,1747689047962,-500.0,0.00018973,2]
[361684834,1747689047972,-500.0,0.00018973,2]
[361684835,1747689047982,-500.0,0.00018973,2]
[361684838,1747689047994,-500.0,0.00018973,2]
[361684840,1747689048005,-603.70077833,0.00018973,2]
[361684841,1747689048014,-500.0,0.00018973,2]
[361684843,1747689048023,-54355.62390672,0.00018986,2]
[361684845,1747689048032,-151.0,0.00018986,2]
[361684848,1747689048042,-27801.3569597,0.00019,2]
[361684964,1747689049135,-300.0,0.00018355,2]
[361684966,1747689049144,-450.0,0.00018356,2]
[361684968,1747689049153,-430.0,0.00018356,2]
[361684970,1747689049162,-699.96995601,0.000189,2]
[361684972,1747689049172,-430.0,0.00018904,2]
[361684974,1747689049181,-3449.63104808,0.00019,2]
[361684976,1747689049190,-50880.46625612,0.00019,7]
[361684978,1747689049199,-151.0,0.00019,2]
[361684980,1747689049208,-151.0,0.00019,2]
[361684982,1747689049217,-466.732241,0.00019,2]
[361684984,1747689049226,-466.732245,0.00019,2]
[361684986,1747689049236,-151.0,0.00019,2]